bitfinex-derivatives/quotes_BTCF0:USTF0_20210409
["timestamp","ask_amount","ask_price","bid_price","bid_amount"]
[1617972214580,0.63466195,58437.0,58436.0,4.37263348]
[1617972214973,0.27662411,58437.0,58436.0,4.37263348]
[1617972215472,0.27662411,58437.0,58436.0,1.74683348]
[1617972217176,3.5848,58441.0,58436.0,1.3824865]
[1617972217578,4.02264982,58441.0,58438.0,1.0]
[1617972217778,4.02264982,58441.0,58437.0,0.0152285]
[1617972217985,4.02264982,58441.0,58439.0,0.27]
[1617972218280,4.02264982,58441.0,58438.0,0.01]
[1617972218482,0.7959457,58440.0,58438.0,0.01]
[1617972218708,0.7959457,58440.0,58436.0,0.10725655]
[1617972218982,3.5848,58441.0,58439.0,0.27]
[1617972219381,0.35827426,58440.0,58439.0,0.11984]
[1617972219883,0.35827426,58440.0,58439.0,0.17984]
[1617972220083,0.35827426,58440.0,58439.0,1.17984]
[1617972221485,0.33796975,58440.0,58439.0,1.17984]
[1617972221986,0.33796975,58440.0,58439.0,0.17984]
[1617972222285,0.33796975,58440.0,58439.0,1.06]
[1617972223688,0.33796975,58440.0,58439.0,1.07522858]
[1617972226194,0.33796975,58440.0,58439.0,0.07522858]
[1617972226701,3.90206975,58440.0,58439.0,0.07522858]
[1617972226993,4.33995078,58440.0,58439.0,0.07522858]
[1617972228097,4.83709563,58440.0,58439.0,0.07522858]
[1617972228342,4.94435218,58440.0,58439.0,0.07522858]
[1617972231602,5.24253098,58440.0,58439.0,0.07522858]
[1617972232601,4.90456123,58440.0,58439.0,0.07522858]
[1617972237807,4.95546123,58440.0,58439.0,0.07522858]
[1617972239209,4.90456123,58440.0,58439.0,0.07522858]
[1617972239610,5.46205675,58440.0,58439.0,0.07522858]
[1617972240010,4.90456123,58440.0,58439.0,0.07522858]
[1617972240211,4.95526123,58440.0,58439.0,0.07522858]
[1617972240512,1.94910262,58440.0,58439.0,0.07522858]
[1617972240812,1.89840262,58440.0,58439.0,0.07522858]
[1617972241712,2.09825807,58440.0,58439.0,0.07522858]
[1617972241914,2.07794832,58440.0,58439.0,0.07522858]
[1617972242714,4.97174832,58440.0,58439.0,0.07522858]
[1617972243114,5.26441922,58440.0,58439.0,0.07522858]
[1617972247020,5.06480036,58440.0,58439.0,0.07522858]
[1617972248520,5.11680036,58440.0,58439.0,0.07522858]
[1617972248721,5.06480036,58440.0,58439.0,0.07522858]
[1617972249121,5.62213965,58440.0,58439.0,0.07522858]
[1617972249824,5.06480036,58440.0,58439.0,0.07522858]
[1617972250624,3.00105655,58440.0,58439.0,0.07522858]
[1617972251227,4.76487055,58440.0,58439.0,0.07522858]
[1617972253131,4.71287055,58440.0,58439.0,0.07522858]
[1617972254033,4.76457055,58440.0,58439.0,0.07522858]
[1617972254234,4.20726584,58440.0,58439.0,0.07522858]
[1617972257237,1.20620929,58440.0,58439.0,0.07522858]
[1617972257475,1.15450929,58440.0,58439.0,2.74166858]
[1617972257704,1.15450929,58440.0,58439.0,3.74166858]
[1617972258139,0.65690514,58440.0,58439.0,1.37376858]
[1617972258338,0.65690514,58440.0,58439.0,0.37376858]
[1617972258538,0.81045572,58440.0,58439.0,2.14864509]
[1617972259141,0.29860229,58440.0,58439.0,4.06444509]
[1617972259340,0.29860229,58440.0,58439.0,5.06444509]
[1617972259549,0.29860229,58440.0,58439.0,5.12534772]
[1617972260040,0.65791821,58440.0,58439.0,4.12534772]
[1617972260542,0.65791821,58440.0,58439.0,3.76119138]
[1617972260841,0.65791821,58440.0,58439.0,3.70028875]
[1617972261840,0.63761574,58440.0,58439.0,3.70028875]
[1617972262243,0.63761574,58440.0,58439.0,3.39682513]
[1617972262244,1.26236001,58440.0,58439.0,3.39682513]
[1617972262502,1.26236001,58440.0,58439.0,0.28102513]
[1617972262704,4.50607364,58440.0,58439.0,0.18248513]
[1617972263223,5.47364537,58440.0,58439.0,0.18248513]
[1617972264546,5.58090192,58440.0,58439.0,0.18248513]
[1617972265163,2.15110192,58440.0,58439.0,0.18248513]
[1617972265391,2.15110192,58440.0,58439.0,3.05308513]
[1617972265768,1.86789132,58440.0,58439.0,3.05308513]
[1617972267650,1.86789132,58440.0,58439.0,0.18248513]
[1617972267958,5.40369132,58440.0,58439.0,0.18248513]
[1617972268598,5.68695783,58440.0,58439.0,0.18248513]
[1617972280079,2.15115783,58440.0,58439.0,0.18248513]
[1617972280567,1.86789132,58440.0,58439.0,3.37938513]
[1617972281769,1.76063477,58440.0,58439.0,3.37938513]
[1617972282172,1.7403302,58440.0,58439.0,3.37938513]
[1617972282774,1.7403302,58440.0,58439.0,4.37938513]
[1617972282976,1.55411924,58440.0,58439.0,4.57938513]
[1617972283375,1.17507025,58440.0,58439.0,4.9442961]
[1617972283676,1.17507025,58440.0,58439.0,4.7442961]
[1617972283875,0.61731117,58440.0,58439.0,5.19028672]
[1617972284274,1.17727021,58440.0,58439.0,4.19028672]
[1617972284776,1.05801022,58440.0,58439.0,3.7442961]
[1617972285580,1.05801022,58440.0,58439.0,0.5473961]
[1617972286029,3.97291022,58440.0,58439.0,0.5473961]
[1617972286682,4.58082911,58440.0,58439.0,0.5473961]
[1617972286990,5.08126189,58440.0,58439.0,0.18248513]
[1617972297294,2.16636189,58440.0,58439.0,0.18248513]
[1617972297493,2.02165189,58440.0,58439.0,0.18248513]
[1617972297693,2.02165189,58440.0,58439.0,3.54238513]
[1617972297995,1.78492894,58440.0,58439.0,3.54238513]
[1617972299297,1.78492894,58440.0,58439.0,0.18248513]
[1617972299797,4.29182894,58440.0,58439.0,0.18248513]
[1617972300095,4.52809893,58440.0,58439.0,0.18248513]
[1617972300996,2.02119893,58440.0,58439.0,0.18248513]
[1617972301398,2.02119893,58440.0,58439.0,2.70468513]
[1617972301597,1.78492894,58440.0,58439.0,2.70468513]
[1617972301895,2.02120852,58440.0,58439.0,2.70468513]
[1617972302696,2.00090376,58440.0,58439.0,0.18248513]
[1617972302919,4.57060376,58440.0,58439.0,0.18248513]
[1617972303197,4.33432418,58440.0,58439.0,0.18248513]
[1617972303598,4.56939899,58440.0,58439.0,0.18248513]
[1617972308002,1.99969899,58440.0,58439.0,0.18248513]
[1617972308201,1.89244244,58440.0,58439.0,3.37758513]
[1617972308401,1.65736763,58440.0,58439.0,3.37758513]
[1617972309025,1.53813824,58440.0,58439.0,4.37758513]
[1617972309403,1.03770546,58440.0,58439.0,4.74243604]
[1617972309801,1.03770546,58440.0,58439.0,5.18835074]
[1617972310305,0.59700641,58440.0,58439.0,5.18835074]
[1617972310501,0.59700641,58440.0,58439.0,1.99325074]
[1617972311319,0.7134185,58440.0,58439.0,1.99325074]
[1617972311871,0.59700641,58440.0,58439.0,1.99325074]
[1617972312019,0.59700641,58440.0,58439.0,0.99325074]
[1617972312305,0.59700641,58440.0,58439.0,2.6999492]
[1617972312306,0.23769049,58440.0,58439.0,2.6999492]
[1617972312705,0.36315309,58441.0,58439.0,2.6999492]
[1617972312905,0.50434007,58451.0,58439.0,2.19325074]
[1617972312906,0.36241168,58451.0,58439.0,2.19325074]
[1617972313105,0.36241168,58451.0,58440.0,1.0]
[1617972313306,0.36241168,58451.0,58441.0,0.2]
[1617972313505,0.36241168,58451.0,58450.0,1.0]
[1617972313705,0.36241168,58451.0,58450.0,1.12559]
[1617972313907,0.36246798,58452.0,58450.0,1.39559]
[1617972314261,0.36253209,58453.0,58450.0,0.8353853]
[1617972314454,0.36253209,58453.0,58451.0,1.01522386]
[1617972314630,0.36267958,58456.0,58452.0,0.36366631]
[1617972314807,0.36267958,58456.0,58452.0,1.75614647]
[1617972315009,0.36280725,58458.0,58455.0,0.36366488]
[1617972315208,0.36280725,58458.0,58457.0,1.0]
[1617972315409,0.36280725,58458.0,58456.0,0.27]
[1617972315609,0.36280725,58458.0,58456.0,0.28522345]
[1617972315808,0.36280725,58458.0,58457.0,1.28522337]
[1617972316008,0.44334251,58462.0,58457.0,0.01522337]
[1617972316208,2.6572,58458.0,58457.0,0.01522337]
[1617972316411,3.13573669,58458.0,58457.0,0.28522337]
[1617972317211,3.13573669,58458.0,58457.0,1.28522337]
[1617972317510,3.13573669,58458.0,58457.0,0.28522337]
[1617972318324,3.5787988,58458.0,58457.0,0.28522337]
[1617972318814,4.18912281,58458.0,58457.0,0.28522337]
[1617972320920,1.53192281,58458.0,58457.0,0.28522337]
[1617972321220,1.53192281,58458.0,58457.0,2.87222337]
[1617972321720,1.41607002,58458.0,58457.0,2.87222337]
[1617972322120,1.42375351,58458.0,58457.0,2.87222337]
[1617972322725,1.30881347,58458.0,58457.0,2.87222337]
[1617972323028,0.89821978,58458.0,58457.0,2.87222337]
[1617972323443,0.78544644,58458.0,58457.0,2.87222337]
[1617972326931,0.78544644,58458.0,58457.0,2.97947992]
[1617972328032,0.78544644,58458.0,58457.0,3.12916992]
[1617972329636,0.34238433,58458.0,58457.0,3.12916992]
[1617972330737,0.34238433,58458.0,58457.0,2.97947992]
[1617972330939,0.44350042,58458.0,58457.0,2.97947992]
[1617972331239,0.56090365,58458.0,58457.0,2.97947992]
[1617972331739,0.44350042,58458.0,58457.0,2.97947992]
[1617972333240,0.44350042,58458.0,58457.0,3.09057992]
[1617972333441,0.74581175,58458.0,58457.0,3.09057992]
[1617972334140,0.74581175,58458.0,58457.0,4.09057992]
[1617972334342,0.30231133,58458.0,58457.0,4.09057992]
[1617972334643,0.42121569,58458.0,58457.0,4.09057992]
[1617972335244,0.30231133,58458.0,58457.0,4.09057992]
[1617972337444,0.30231133,58458.0,58457.0,3.09057992]
[1617972338344,0.30231133,58458.0,58457.0,2.97947992]
[1617972338845,0.30231133,58458.0,58457.0,3.11802992]
[1617972339348,0.87405183,58458.0,58457.0,3.11802992]
[1617972339945,0.74620787,58458.0,58457.0,2.97947992]
[1617972340851,0.30231133,58458.0,58457.0,2.97947992]
[1617972341149,0.74626089,58458.0,58457.0,2.97947992]
[1617972341749,0.30231133,58458.0,58457.0,2.97947992]
[1617972342261,0.74643448,58458.0,58457.0,2.97947992]
[1617972342850,0.72613485,58458.0,58457.0,2.97947992]
[1617972343150,0.84280254,58458.0,58457.0,2.97947992]
[1617972343751,0.72613485,58458.0,58457.0,2.97947992]
[1617972344155,0.2820117,58458.0,58457.0,2.97947992]
[1617972344652,0.72616393,58458.0,58457.0,2.97947992]
[1617972348256,1.08968525,58458.0,58457.0,2.97947992]
[1617972349570,1.59496122,58458.0,58457.0,2.97947992]
[1617972351858,1.71187001,58458.0,58457.0,2.97947992]
[1617972353262,1.71187001,58458.0,58457.0,0.39247992]
[1617972353660,5.26397001,58458.0,58457.0,0.39247992]
[1617972354062,5.50096468,58458.0,58457.0,0.39247992]
[1617972355263,1.94886468,58458.0,58457.0,0.39247992]
[1617972355663,1.94886468,58458.0,58457.0,2.97057992]
[1617972356163,1.59496122,58458.0,58457.0,2.97057992]
[1617972356463,1.71174375,58458.0,58457.0,2.97057992]
[1617972356864,1.08968525,58458.0,58457.0,2.97057992]
[1617972358266,1.20646507,58458.0,58457.0,3.97057992]
[1617972358666,1.08968525,58458.0,58457.0,3.97057992]
[1617972360371,0.64553302,58458.0,58457.0,3.97057992]
[1617972360972,1.09176642,58458.0,58457.0,4.33376091]
[1617972361672,1.09176642,58458.0,58457.0,3.33376091]
[1617972362072,1.22564759,58458.0,58457.0,3.33376091]
[1617972362473,1.5988495,58458.0,58457.0,3.33376091]
[1617972362973,1.57855146,58458.0,58457.0,3.33376091]
[1617972365080,1.07146838,58458.0,58457.0,3.33376091]
[1617972365880,1.18801838,58458.0,58457.0,3.33376091]
[1617972366281,1.8262301,58458.0,58457.0,2.97057992]
[1617972366478,1.8262301,58458.0,58457.0,0.39247992]
[1617972366881,4.6629301,58458.0,58457.0,0.39247992]
[1617972367129,1.8262301,58458.0,58457.0,0.39247992]
[1617972374192,5.95163941,58458.0,58457.0,0.39247992]
[1617972374993,6.19955001,58458.0,58457.0,0.39247992]
[1617972378596,8.69955001,58458.0,58457.0,0.01522337]
[1617972378997,8.89955001,58458.0,58457.0,0.01522337]
[1617972379198,9.28708746,58458.0,58445.0,0.10725655]
[1617972379777,1.0,58451.0,58446.0,0.01522717]
[1617972379940,1.0,58451.0,58446.0,0.28522717]
[1617972380149,1.31701147,58447.0,58446.0,0.28522717]
[1617972380499,1.31701147,58447.0,58446.0,0.27]
[1617972380899,1.31701147,58447.0,58446.0,0.28522799]
[1617972381301,1.42426802,58447.0,58446.0,0.28522799]
[1617972381901,1.55694454,58447.0,58446.0,0.28522799]
[1617972382304,4.40924454,58447.0,58446.0,0.28522799]
[1617972382816,4.65792297,58447.0,58446.0,0.28522799]
[1617972383209,1.78531907,58447.0,58446.0,0.28522799]
[1617972383410,1.78531907,58447.0,58446.0,3.42272799]
[1617972383610,1.53664064,58447.0,58446.0,3.42272799]
[1617972383909,1.53664064,58447.0,58446.0,0.28522799]
[1617972384111,4.83484064,58447.0,58446.0,0.28522799]
[1617972384511,5.08171436,58447.0,58446.0,0.28522799]
[1617972385313,7.58171436,58447.0,58446.0,0.01522799]
[1617972385713,7.58171436,58447.0,58440.0,0.01522851]
[1617972385914,8.5327301,58447.0,58440.0,0.01522851]
[1617972386113,8.7327301,58447.0,58446.0,0.01522905]
[1617972386315,5.10545655,58447.0,58446.0,0.01522905]
[1617972386513,6.10545655,58447.0,58441.0,0.27]
[1617972386715,7.6247705,58447.0,58440.0,0.28522907]
[1617972387012,7.6247705,58447.0,58442.0,0.01522909]
[1617972387213,0.56719801,58445.0,58441.0,0.28522909]
[1617972387415,1.7,58444.0,58441.0,0.28522909]
[1617972387715,1.7,58444.0,58442.0,0.01522909]
[1617972387914,1.7,58444.0,58442.0,0.28522909]
[1617972388115,1.7,58444.0,58442.0,0.01522909]
[1617972388415,0.37639942,58443.0,58442.0,0.01522909]
[1617972388615,5.62489942,58443.0,58441.0,0.01522927]
[1617972388917,6.57476872,58443.0,58442.0,0.27]
[1617972389114,6.57476872,58443.0,58426.0,0.01522931]
[1617972389331,2.32628668,58442.0,58429.0,0.10725655]
[1617972389515,1.5,58441.0,58429.0,0.10725655]
[1617972389815,0.44462956,58432.0,58430.0,0.28522942]
[1617972390115,3.1475,58431.0,58430.0,0.27]
[1617972390515,3.27755834,58431.0,58430.0,0.28522945]
[1617972391432,3.38481489,58431.0,58430.0,0.28522945]
[1617972392318,3.82946209,58431.0,58430.0,0.28522945]
[1617972393233,4.13267847,58431.0,58430.0,0.28522945]
[1617972395323,4.13267847,58431.0,58430.0,0.27]
[1617972395523,4.13267847,58431.0,58430.0,0.28523087]
[1617972399127,0.98517847,58431.0,58430.0,0.28523087]
[1617972399329,0.98517847,58431.0,58430.0,3.80823087]
[1617972399847,0.43327472,58431.0,58430.0,3.80823087]
[1617972400328,0.30321638,58431.0,58430.0,3.80823087]
[1617972400862,0.30321638,58431.0,58430.0,4.80823087]
[1617972401657,0.30275861,58432.0,58430.0,1.28523087]
[1617972401930,0.30275861,58432.0,58431.0,3.0018]
[1617972402330,0.30275861,58432.0,58431.0,3.2870297]
[1617972403232,0.28245229,58432.0,58431.0,3.2870297]
[1617972404433,0.28245229,58432.0,58431.0,3.28702985]
[1617972405132,0.28245229,58432.0,58431.0,3.2718]
[1617972405333,0.28245229,58432.0,58431.0,3.28702973]
[1617972407135,0.28245229,58432.0,58431.0,4.28702973]
[1617972407436,0.44356641,58440.0,58431.0,4.28702973]
[1617972407837,0.44356641,58440.0,58432.0,1.01522979]
[1617972408238,0.36320785,58435.0,58433.0,0.28522981]
[1617972408639,0.36320785,58435.0,58434.0,0.01522978]
[1617972409040,0.36320785,58435.0,58434.0,0.28522978]
[1617972409645,0.36320713,58436.0,58434.0,0.28522978]
[1617972410144,0.44356641,58440.0,58435.0,0.01522978]
[1617972410443,0.44356641,58440.0,58435.0,1.01522978]
[1617972410642,0.44356641,58440.0,58439.0,2.7117]
[1617972410953,0.44356641,58440.0,58439.0,3.80988]
[1617972410954,0.36336046,58440.0,58439.0,3.80988]
[1617972411159,0.36336046,58440.0,58439.0,4.07988]
[1617972411443,0.36336046,58440.0,58439.0,4.20236582]
[1617972416153,0.36336046,58440.0,58439.0,3.20236582]
[1617972419156,0.36336046,58440.0,58439.0,4.20236582]
[1617972420055,0.36336046,58440.0,58439.0,3.20236582]
[1617972420256,0.36336046,58440.0,58439.0,3.10418582]
[1617972421857,0.36336046,58440.0,58439.0,3.24319582]
[1617972422059,0.36325759,58441.0,58439.0,3.24319582]
[1617972422561,0.36325759,58441.0,58440.0,1.0]
[1617972422760,0.36325759,58441.0,58440.0,1.01522894]
[1617972422960,0.36325759,58441.0,58440.0,1.28522894]
[1617972423160,0.36325759,58441.0,58440.0,4.80522894]
[1617972423560,0.34295228,58441.0,58440.0,4.80522894]
[1617972424360,0.44393816,58447.0,58440.0,4.80522894]
[1617972424860,0.44393816,58447.0,58445.0,1.0]
[1617972425361,0.44393604,58448.0,58446.0,0.28522836]
[1617972425561,0.44393604,58448.0,58447.0,0.10725655]
[1617972425762,0.50574187,58449.0,58447.0,0.10725655]
[1617972425961,0.50574187,58449.0,58447.0,0.37725655]
[1617972426162,0.44505821,58448.0,58447.0,0.37725655]
[1617972426463,3.95729623,58448.0,58447.0,0.37725655]
[1617972426864,3.81967463,58448.0,58447.0,0.37725655]
[1617972427792,4.32542253,58448.0,58447.0,0.37725655]
[1617972431067,1.31892253,58448.0,58447.0,0.37725655]
[1617972431269,0.81317463,58448.0,58447.0,3.09368475]
[1617972431469,0.81317463,58448.0,58447.0,3.19955475]
[1617972431772,0.44505821,58448.0,58447.0,3.19955475]
[1617972432571,0.44505821,58448.0,58447.0,3.09368475]
[1617972433676,1.25304471,58448.0,58447.0,3.09368475]
[1617972434076,0.74807839,58448.0,58447.0,3.09368475]
[1617972435313,0.74807839,58448.0,58447.0,4.09368475]
[1617972435723,0.74807839,58448.0,58447.0,4.39710454]
[1617972435892,0.30302018,58448.0,58447.0,4.39710454]
[1617972436299,0.4280202,58448.0,58447.0,4.39710454]
[1617972436673,0.30302018,58448.0,58447.0,4.39710454]
[1617972437113,0.42814497,58448.0,58447.0,4.39710454]
[1617972437489,0.30302018,58448.0,58447.0,4.39710454]
[1617972437975,0.30302018,58448.0,58447.0,4.84244364]
[1617972441079,0.30302018,58448.0,58447.0,4.82721544]
[1617972441381,0.50531263,58460.0,58447.0,4.39710178]
[1617972441382,0.30225556,58452.0,58447.0,4.39710178]
[1617972441780,0.30225556,58452.0,58451.0,0.30281099]
[1617972441981,0.30225556,58452.0,58451.0,1.30281099]
[1617972442283,0.30232118,58453.0,58451.0,1.58803937]
[1617972442681,0.30232118,58453.0,58452.0,0.31810509]
[1617972442880,0.30232118,58453.0,58452.0,0.44369509]
[1617972443081,0.30232118,58453.0,58452.0,1.71369509]
[1617972443782,0.28201656,58453.0,58452.0,1.71369509]
[1617972443984,0.28201656,58453.0,58452.0,4.65699509]
[1617972444185,0.44318524,58462.0,58452.0,4.65699509]
[1617972444684,0.44318524,58462.0,58452.0,3.65699509]
[1617972444887,0.44323649,58463.0,58461.0,1.0]
[1617972445086,0.44323649,58463.0,58462.0,2.7835]
[1617972445286,0.44323649,58463.0,58462.0,3.0535]
[1617972445486,0.44323649,58463.0,58462.0,4.06872798]
[1617972445686,1.01783217,58478.0,58462.0,4.17598453]
[1617972445687,0.44308348,58465.0,58462.0,4.17598453]
[1617972446089,0.44275974,58464.0,58462.0,4.17598453]
[1617972446288,0.44275974,58464.0,58462.0,3.17598453]
[1617972446488,0.44275974,58464.0,58463.0,0.01522801]
[1617972446890,0.44275974,58464.0,58463.0,1.28522801]
[1617972447491,0.44244495,58465.0,58464.0,1.0]
[1617972447791,0.44244495,58465.0,58463.0,0.28522801]
[1617972448091,0.44244495,58465.0,58464.0,1.02522783]
[1617972448292,0.44227738,58466.0,58464.0,1.02522783]
[1617972448490,0.44227738,58466.0,58464.0,1.10947783]
[1617972448690,0.44227738,58466.0,58465.0,0.01522803]
[1617972448892,0.44227738,58466.0,58465.0,0.28522803]
[1617972449091,0.44227738,58466.0,58465.0,1.28522803]
[1617972449293,0.80398614,58466.0,58465.0,1.28522803]
[1617972450797,0.36170876,58466.0,58465.0,0.28522803]
[1617972451197,0.92836505,58466.0,58465.0,1.28522803]
[1617972451402,0.92836505,58466.0,58465.0,1.40171803]
[1617972451617,0.80375737,58466.0,58465.0,1.40171803]
[1617972452399,0.36170876,58466.0,58465.0,1.40171803]
[1617972453096,3.11510876,58466.0,58465.0,1.40171803]
[1617972453297,3.11510876,58466.0,58465.0,1.28522803]
[1617972453897,3.24103922,58466.0,58465.0,1.28522803]
[1617972454097,0.48763922,58466.0,58465.0,1.28522803]
[1617972454800,0.36170876,58466.0,58465.0,4.76782803]
[1617972456803,0.36170876,58466.0,58465.0,1.28522803]
[1617972457004,0.36170876,58466.0,58465.0,0.28522803]
[1617972457208,3.75280876,58466.0,58465.0,0.28522803]
[1617972457705,3.87881566,58466.0,58465.0,0.28522803]
[1617972457904,3.87881566,58466.0,58465.0,1.28522803]
[1617972458305,3.87881566,58466.0,58465.0,0.28522803]
[1617972459203,0.48771566,58466.0,58465.0,0.28522803]
[1617972459504,0.48771566,58466.0,58465.0,4.55722803]
[1617972459706,0.36170876,58466.0,58465.0,4.55722803]
[1617972463508,0.80349538,58466.0,58465.0,4.55722803]
[1617972463808,0.44178662,58466.0,58465.0,4.55722803]
[1617972464007,0.91470823,58466.0,58465.0,4.55722803]
[1617972464308,0.78304376,58466.0,58465.0,4.55722803]
[1617972466610,0.36156045,58466.0,58465.0,4.55722803]
[1617972467111,0.362245,58469.0,58465.0,4.55722803]
[1617972467418,0.362245,58469.0,58465.0,3.55722803]
[1617972467611,0.3624828,58472.0,58466.0,0.01522506]
[1617972467809,0.3624828,58472.0,58471.0,0.10725655]
[1617972468213,0.36250368,58473.0,58471.0,0.10725655]
[1617972468511,0.36250368,58473.0,58471.0,1.39248174]
[1617972468712,0.36250368,58473.0,58472.0,1.01522501]
[1617972469020,0.36242993,58474.0,58472.0,1.01522501]
[1617972469211,0.36242993,58474.0,58472.0,1.28522501]
[1617972469412,0.36250935,58473.0,58472.0,0.27]
[1617972470111,0.36250935,58473.0,58472.0,0.28522498]
[1617972470313,0.36250935,58473.0,58472.0,1.28522498]
[1617972471015,0.36250935,58473.0,58472.0,4.10802498]
[1617972472419,0.36250935,58473.0,58472.0,4.0928]
[1617972473017,0.36250935,58473.0,58472.0,4.10802503]
[1617972474019,0.66500772,58473.0,58472.0,4.10802503]
[1617972474921,0.30249837,58473.0,58472.0,4.10802503]
[1617972475324,0.66509446,58473.0,58472.0,4.10802503]
[1617972475750,0.30249837,58473.0,58472.0,4.10802503]
[1617972484037,0.28219872,58473.0,58472.0,4.10802503]
[1617972484462,0.28219872,58473.0,58472.0,4.0928]
[1617972484639,0.28219872,58473.0,58472.0,3.10802476]
[1617972484837,0.28219872,58473.0,58472.0,0.28522476]
[1617972485038,3.59329872,58473.0,58472.0,0.28522476]
[1617972486039,3.95546006,58473.0,58472.0,0.28522476]
[1617972487543,3.95546006,58473.0,58472.0,1.28522476]
[1617972488349,3.95546006,58473.0,58472.0,0.28522476]
[1617972488743,3.95546006,58473.0,58472.0,1.28522476]
[1617972488744,3.59329872,58473.0,58472.0,1.28522476]
[1617972489345,0.28219872,58473.0,58472.0,1.28522476]
[1617972489646,0.36242295,58477.0,58472.0,4.15802476]
[1617972490344,0.36242295,58477.0,58474.0,1.0]
[1617972490546,0.36242295,58477.0,58476.0,1.0]
[1617972490749,0.4439217,58477.0,58476.0,1.0]
[1617972491149,0.36318104,58477.0,58476.0,1.28522583]
[1617972491549,0.80701444,58477.0,58476.0,1.28522583]
[1617972491950,0.80701444,58477.0,58476.0,0.28522583]
[1617972492250,0.80701444,58477.0,58476.0,1.28522583]
[1617972493550,0.36318104,58477.0,58476.0,1.28522583]
[1617972493750,0.48902203,58477.0,58476.0,1.28522583]
[1617972494255,0.36318104,58477.0,58476.0,1.28522583]
[1617972497057,0.80703602,58477.0,58476.0,1.28522583]
[1617972498164,0.80703602,58477.0,58476.0,0.28522583]
[1617972498366,0.80703602,58477.0,58476.0,1.28522583]
[1617972503066,0.80703602,58477.0,58476.0,0.28522583]
[1617972503268,0.80703602,58477.0,58476.0,1.28522583]
[1617972504170,0.78673461,58477.0,58476.0,0.28522583]
[1617972504369,0.91100243,58477.0,58476.0,0.28522583]
[1617972504569,4.01690243,58477.0,58476.0,0.28522583]
[1617972504773,3.89263461,58477.0,58476.0,1.28522583]
[1617972504971,3.89263461,58477.0,58476.0,0.28522583]
[1617972505286,4.25865607,58477.0,58476.0,0.28522583]
[1617972505471,1.15275607,58477.0,58476.0,0.28522583]
[1617972505686,0.80987644,58477.0,58476.0,0.28522583]
[1617972506172,0.80987644,58477.0,58476.0,3.50472583]
[1617972506173,0.56807617,58477.0,58476.0,3.50472583]
[1617972506973,0.44385498,58477.0,58476.0,3.50472583]
[1617972507673,0.44385498,58477.0,58476.0,4.50472583]
[1617972511577,0.44385498,58477.0,58476.0,1.28522583]
[1617972511778,3.69145498,58477.0,58476.0,1.28522583]
[1617972512177,3.69145498,58477.0,58476.0,0.28522583]
[1617972512481,4.05621861,58477.0,58476.0,0.28522583]
[1617972512879,0.80861861,58477.0,58476.0,0.28522583]
[1617972513378,0.80861861,58477.0,58476.0,3.47682583]
[1617972513579,0.44385498,58477.0,58476.0,3.47682583]
[1617972514683,0.74554474,58477.0,58476.0,3.47682583]
[1617972515885,3.3376,58480.0,58476.0,3.47682583]
[1617972516284,3.3376,58480.0,58479.0,0.10725655]
[1617972516685,3.3376,58480.0,58479.0,0.37725655]
[1617972516886,4.58440536,58480.0,58479.0,0.39248322]
[1617972517988,4.78440536,58480.0,58479.0,0.39248322]
[1617972519118,5.34662232,58480.0,58479.0,0.39248322]
[1617972520291,6.84662232,58480.0,58479.0,0.39248322]
[1617972520803,8.2231523,58480.0,58479.0,0.01522667]
[1617972521191,8.2231523,58480.0,58479.0,0.0142114]
[1617972521789,8.2231523,58480.0,58479.0,1.14e-05]
[1617972522018,8.2744523,58480.0,58479.0,1.14e-05]
[1617972522221,8.97591978,58480.0,58461.0,0.01523176]
[1617972522490,0.10725655,58462.0,58461.0,0.01523176]
[1617972522694,3.73767901,58462.0,58459.0,0.10725655]
[1617972523101,3.73767901,58462.0,58461.0,0.01523232]
[1617972523102,4.73767901,58462.0,58461.0,0.01523232]
[1617972523394,7.27207901,58462.0,58460.0,0.01523247]
[1617972523693,7.66651567,58462.0,58460.0,0.01523247]
[1617972524196,2.58925875,58461.0,58460.0,0.01523247]
[1617972524393,4.28925875,58461.0,58460.0,0.01523247]
[1617972524994,2.58925875,58461.0,58460.0,0.01523247]
[1617972525616,0.88434508,58461.0,58460.0,3.24133247]
[1617972526195,0.74237855,58461.0,58460.0,3.24133247]
[1617972526394,0.74237855,58461.0,58460.0,3.51133247]
[1617972526995,0.74237855,58461.0,58460.0,0.28523247]
[1617972527565,0.30098325,58461.0,58460.0,1.28523247]
[1617972528196,0.30035886,58465.0,58460.0,1.58799417]
[1617972528496,0.30035886,58465.0,58461.0,0.01522692]
[1617972528696,0.30035987,58466.0,58463.0,0.3027596]
[1617972528897,0.30035987,58466.0,58464.0,1.0]
[1617972529196,0.30035987,58466.0,58465.0,1.0]
[1617972529398,0.30035987,58466.0,58465.0,1.01522676]
[1617972529598,0.30035987,58466.0,58465.0,1.28522676]
[1617972529798,0.30036419,58467.0,58465.0,1.28522676]
[1617972530298,0.36036015,58469.0,58468.0,1.0]
[1617972530499,0.36036015,58469.0,58468.0,0.10725655]
[1617972530699,0.36036015,58469.0,58468.0,0.11725655]
[1617972530898,0.660724,58469.0,58468.0,1.13248225]
[1617972531198,0.660724,58469.0,58468.0,3.63338225]
[1617972531401,0.30036385,58469.0,58468.0,3.63338225]
[1617972533102,0.30049412,58470.0,58468.0,0.13248225]
[1617972533300,3.1201,58469.0,58468.0,0.13248225]
[1617972533500,3.2249,58469.0,58468.0,0.11725655]
[1617972533702,3.52537669,58469.0,58468.0,0.11725655]
[1617972534000,3.52537669,58469.0,58468.0,0.13248345]
[1617972534202,4.02507607,58469.0,58468.0,0.13248345]
[1617972534400,0.90497607,58469.0,58468.0,0.13248345]
[1617972534601,0.90497607,58469.0,58468.0,3.44568345]
[1617972534802,0.80017607,58469.0,58468.0,3.44568345]
[1617972535402,0.80017607,58469.0,58468.0,4.44568345]
[1617972535902,0.66039879,58469.0,58468.0,4.44568345]
[1617972536202,0.80029265,58469.0,58468.0,3.44568345]
[1617972536603,0.66039879,58469.0,58468.0,3.44568345]
[1617972537404,0.66039879,58469.0,58468.0,4.44568345]
[1617972538806,0.66039879,58469.0,58468.0,4.59352345]
[1617972540147,0.66039879,58469.0,58468.0,1.13248345]
[1617972540310,3.50669879,58469.0,58468.0,1.13248345]
[1617972540508,3.50669879,58469.0,58468.0,0.13248345]
[1617972541210,4.33914007,58469.0,58468.0,0.13248345]
[1617972541710,4.83949071,58469.0,58468.0,0.13248345]
[1617972544325,4.8191863,58469.0,58468.0,0.13248345]
[1617972544611,1.47253566,58469.0,58468.0,0.13248345]
[1617972545213,0.80050554,58469.0,58468.0,0.13248345]
[1617972545512,0.93931238,58469.0,58468.0,0.13248345]
[1617972546115,0.80050554,58469.0,58468.0,0.13248345]
[1617972546514,0.9392582,58469.0,58468.0,0.13248345]
[1617972546914,0.80050554,58469.0,58468.0,0.13248345]
[1617972547915,0.80050554,58469.0,58468.0,0.11725655]
[1617972548213,0.80050554,58469.0,58468.0,0.13248438]
[1617972548414,0.80050554,58469.0,58468.0,0.11725655]
[1617972548615,0.80050554,58469.0,58468.0,0.13248447]
[1617972548915,0.92969554,58469.0,58468.0,0.13248447]